bitfinex/quotes_ETHUSD_20251021
["timestamp","ask_amount","ask_price","bid_price","bid_amount"]
[1761019399972,0.02566577,3904.4,3902.6,0.4388]
[1761019400166,0.02566577,3904.4,3902.7,0.50688]
[1761019400381,4.214,3905.4,3903.3,2.56191423]
[1761019400608,13.155955,3905.2,3903.3,0.4388]
[1761019400791,1.728,3904.9,3902.7,0.4388]
[1761019400990,1.728,3904.5,3902.7,0.4388]
[1761019401193,7.511735,3904.4,3902.7,0.4388]
[1761019401406,1.728,3905.1,3902.7,0.4388]
[1761019401698,6.735131,3905.1,3902.7,0.4388]
[1761019401912,0.1425,3905.8,3902.8,0.53250262]
[1761019402114,4.780493,3905.5,3902.8,0.50688]
[1761019402424,0.02566577,3905.4,3903.4,2.56186405]
[1761019402709,4.737658,3905.7,3903.8,2.56156651]
[1761019402883,2.682,3905.3,3903.5,0.4388]
[1761019403068,1.728,3904.9,3903.5,0.4388]
[1761019403267,0.02566577,3904.8,3903.5,0.4388]
[1761019403500,1.728,3904.6,3903.5,0.4388]
[1761019403687,0.02566577,3904.5,3902.8,0.4388]
[1761019404404,0.02566577,3904.6,3902.8,0.4388]
[1761019404587,1.728,3904.5,3902.8,0.4388]
[1761019404789,1.728,3904.1,3902.3,0.2205]
[1761019404984,2.238164,3903.8,3902.4,0.4388]
[1761019405167,4.374894,3903.6,3902.4,0.4388]
[1761019405367,0.02566577,3903.7,3902.4,0.4388]
[1761019405564,0.02566577,3904.2,3902.4,0.4388]
[1761019405788,1.728,3904.0,3902.4,0.4388]
[1761019405965,1.728,3904.3,3902.5,0.02562459]
[1761019406179,2.5604157,3905.7,3902.5,0.02562459]
[1761019406180,0.02566577,3904.2,3902.5,0.50688]
[1761019406381,0.02566577,3904.4,3902.6,0.4388]
[1761019406584,18.849681,3905.1,3902.6,0.4388]
[1761019406890,0.40184185,3904.2,3903.3,2.56187879]
[1761019407200,0.40184185,3904.2,3902.6,3.00119092]
[1761019407201,0.02566577,3904.1,3902.9,2.56215728]
[1761019407406,0.40184185,3904.2,3903.0,0.4388]
[1761019407710,0.40184185,3904.2,3903.3,2.56187461]
[1761019407873,0.40184185,3904.2,3903.0,0.4388]
[1761019408199,0.40184185,3904.2,3904.1,0.2224]
[1761019408403,0.40184185,3904.2,3904.1,2.78380979]
[1761019408573,0.40184185,3904.2,3904.1,0.6612]
[1761019409225,0.40184185,3904.2,3904.1,3.22260979]
[1761019409366,0.40184185,3904.2,3904.1,0.6612]
[1761019409566,0.21080893,3904.1,3902.7,0.4388]
[1761019409797,0.02566577,3904.0,3902.6,2.56239379]
[1761019409997,0.02566577,3904.0,3902.9,2.56219517]
[1761019410304,0.21080893,3904.1,3902.5,0.50688]
[1761019410618,0.21080893,3904.1,3902.5,4.158]
[1761019410774,0.21080893,3904.1,3903.4,2.56182674]
[1761019410973,0.21080893,3904.1,3903.5,3.25789539]
[1761019411174,0.21080893,3904.1,3903.8,2.56157288]
[1761019411369,0.21080893,3904.1,3903.9,3.03083009]
[1761019411571,0.21080893,3904.1,3904.0,2.5614754]
[1761019411905,0.21080893,3904.1,3904.0,3.5376554]
[1761019412571,0.21080893,3904.1,3903.5,0.2268]
[1761019413012,0.21080893,3904.1,3903.5,0.6961]
[1761019413378,0.21080893,3904.1,3903.6,0.4693]
[1761019413590,0.21080893,3904.1,3903.6,3.03103221]
[1761019413786,0.21080893,3904.1,3903.6,3.03103137]
[1761019413987,0.21080893,3904.1,3903.6,0.4693]
[1761019414172,0.21080893,3904.1,3903.5,2.78855631]
[1761019414173,0.21080893,3904.1,3903.5,0.2268]
[1761019414394,0.21080893,3904.1,3903.0,0.4693]
[1761019414596,8.55621177,3904.0,3902.3,0.2205]
[1761019414793,8.55621177,3904.0,3901.8,0.4693]
[1761019414794,0.1419,3904.0,3902.1,2.56266119]
[1761019414995,0.1419,3904.0,3901.8,3.25901122]
[1761019414996,13.533659,3903.7,3901.8,3.25901122]
[1761019415202,11.534454,3903.5,3901.9,0.4693]
[1761019415373,18.849681,3904.0,3902.4,2.56251972]
[1761019415705,0.21080893,3904.1,3902.0,0.50688]
[1761019415875,0.02566577,3904.0,3902.0,0.4693]
[1761019416074,1.728,3904.0,3902.0,0.4693]
[1761019416308,1.728,3903.6,3902.0,0.4693]
[1761019416470,2.31061,3903.7,3902.0,0.4693]
[1761019416674,2.56147751,3904.0,3902.1,2.56271747]
[1761019416874,0.1253,3904.2,3902.2,0.02562656]
[1761019417095,4.123,3904.5,3902.1,0.50688]
[1761019417303,2.156815,3904.3,3902.2,0.50688]
[1761019417504,0.02566577,3904.2,3902.8,2.56221282]
[1761019417707,0.02566577,3904.2,3903.1,2.5620399]
[1761019417910,0.02566577,3904.2,3902.4,0.50688]
[1761019418145,0.0993,3905.4,3902.6,0.50688]
[1761019418300,7.82775597,3908.6,3902.8,0.50688]
[1761019418301,4.116,3905.2,3902.8,0.50688]
[1761019418498,0.02666577,3905.0,3902.8,0.50688]
[1761019418802,0.02666577,3905.0,3903.6,2.56168708]
[1761019419027,0.02666577,3905.0,3903.0,0.50688]
[1761019419028,0.02666577,3905.0,3903.9,2.56150389]
[1761019419341,4.559288,3904.9,3903.1,0.4693]
[1761019419539,0.128,3903.8,3903.1,3.1593196]
[1761019419743,0.02566577,3904.8,3903.3,2.56191258]
[1761019420045,0.128,3903.1,3902.5,0.2268]
[1761019420251,1.728,3904.0,3902.5,0.2268]
[1761019420536,0.128,3902.8,3902.5,0.2268]
[1761019421034,1.728,3904.2,3902.5,0.2268]
[1761019421255,1.728,3902.9,3901.3,0.6961]
[1761019421404,0.02566577,3902.8,3901.3,0.6961]
[1761019421600,0.02566577,3902.8,3900.9,2.56350015]
[1761019421877,0.02566577,3902.8,3900.7,0.2224]
[1761019421878,1.728,3902.6,3900.7,0.2224]
[1761019422139,1.728,3902.3,3900.6,0.4693]
[1761019422308,9.62776205,3902.0,3900.0,2.56410256]
[1761019422510,2.752852,3901.8,3900.0,2.56410256]
[1761019422728,0.02566577,3901.7,3899.7,4.101]
[1761019423015,2.377283,3902.0,3900.3,2.56384939]
[1761019423219,2.377283,3902.0,3899.6,0.2205]
[1761019423220,1.728,3901.7,3899.6,0.2205]
[1761019423429,9.309609,3901.3,3898.7,4.099]
[1761019423720,3.816401,3901.0,3898.7,4.099]
[1761019423920,2.487256,3900.8,3899.1,2.79148783]
[1761019424228,9.2965,3900.6,3899.1,0.2268]
[1761019424418,6.843464,3900.4,3899.1,0.2268]
[1761019424617,0.02566577,3900.3,3899.1,2.7914873]
[1761019424828,0.02566577,3900.7,3899.2,0.4693]
[1761019425011,4.1,3900.8,3899.3,2.56456287]
[1761019425212,0.40209634,3900.9,3899.7,2.56427971]
[1761019425416,5.319103,3901.7,3899.8,2.56421213]
[1761019425678,1.728,3901.6,3900.2,2.5639072]
[1761019425831,0.40204242,3901.4,3900.3,0.4693]
[1761019426031,4.148443,3902.2,3900.3,0.4693]
[1761019426275,3.43217216,3902.2,3900.4,0.50688]
[1761019426436,0.40198316,3902.2,3900.4,0.50688]
[1761019426632,1.89053868,3904.2,3900.0,1.728]
[1761019426633,2.063573,3903.7,3902.2,0.50688]
[1761019426828,0.40187446,3902.6,3902.1,2.78951987]
[1761019427065,0.40187446,3902.6,3902.2,0.50688]
[1761019427363,0.03201762,3904.1,3902.5,0.50688]
[1761019427566,5.689485,3904.5,3902.5,0.50688]
[1761019427767,3.034428,3904.3,3902.6,0.01274385]
[1761019427931,0.001,3905.0,3903.6,2.56169818]
[1761019427932,0.0320168,3904.2,3903.6,2.56169818]
[1761019428132,0.03201188,3904.8,3903.5,0.2268]
[1761019428333,0.03201188,3904.8,3903.6,2.56173788]
[1761019428534,0.001,3905.0,3903.7,2.56167225]
[1761019428859,2.063,3904.9,3903.5,0.2268]
[1761019429029,0.03201188,3904.8,3903.8,2.56156334]
[1761019429230,0.03201188,3904.8,3903.6,3.03103788]
[1761019429231,2.848,3904.9,3903.7,2.5616626]
[1761019429474,0.03201188,3904.8,3903.6,0.4693]
[1761019429678,2.079309,3904.7,3903.5,0.2268]
[1761019429874,2.079309,3904.7,3903.0,3.03137115]
[1761019429875,0.03201352,3904.6,3903.0,0.4693]
[1761019430035,0.0320127,3904.7,3903.4,0.2268]
[1761019430357,0.001,3905.0,3903.5,0.4693]
[1761019430557,0.03301024,3905.0,3903.9,2.56153012]
[1761019430931,0.03301024,3905.0,3903.7,2.56167225]
[1761019431272,0.128,3904.1,3903.6,3.0310042]
[1761019431492,0.128,3904.1,3903.7,2.56166846]
[1761019431636,0.128,3904.1,3903.8,2.56159205]
[1761019431841,0.128,3904.1,3903.9,2.56153572]
[1761019432041,0.128,3904.1,3903.4,0.3548]
[1761019432371,0.0769923,3903.9,3903.4,0.3548]
[1761019432549,0.0769923,3903.9,3903.3,2.56191561]
[1761019432747,0.0769923,3903.9,3903.0,2.7889239]
[1761019432748,0.128,3903.7,3903.1,0.128]
[1761019432950,0.128,3903.7,3903.1,2.69005514]
[1761019433273,0.128,3903.7,3903.2,3.03129801]
[1761019433566,0.0769923,3903.9,3903.0,0.2268]
[1761019433939,0.0769923,3903.9,3903.0,2.78886687]
[1761019434157,0.0769923,3903.9,3903.0,0.7088432]
[1761019434366,0.0769923,3903.9,3903.1,0.4693]
[1761019434933,0.0769923,3903.9,3903.2,2.56199982]
[1761019435140,0.0769923,3903.9,3903.1,0.4693]
[1761019435436,0.0769923,3903.9,3903.0,0.2268]
[1761019435637,0.0769923,3903.9,3903.0,0.6961]
[1761019435945,0.0769923,3903.9,3903.3,2.56188099]
[1761019436282,0.0769923,3903.9,3903.4,3.00548624]
[1761019436440,0.0769923,3903.9,3903.5,2.56180161]
[1761019436643,0.0769923,3903.9,3903.4,0.4693]
[1761019436644,0.0769923,3903.9,3903.2,2.56193584]
[1761019436837,0.0769923,3903.9,3903.1,2.56206605]
[1761019437077,0.0769923,3903.9,3903.4,2.56186216]
[1761019437371,0.0769923,3903.9,3903.1,2.56206605]
[1761019437372,0.0769923,3903.9,3903.1,2.56205065]
[1761019437876,1.728,3904.8,3903.1,2.56206605]
[1761019438043,5.896427,3904.6,3903.0,2.78891889]
[1761019438247,3.34218,3904.4,3903.1,2.56206605]
[1761019438559,0.03201598,3904.3,3903.1,2.56206605]
[1761019438768,2.749062,3904.6,3903.0,0.2268]
[1761019438955,0.03201434,3904.5,3903.0,0.2268]
[1761019439155,0.03301024,3905.0,3903.1,0.4693]
[1761019439338,0.40181141,3904.3,3903.2,0.50688]
[1761019439771,0.40181141,3904.3,3903.7,2.56166859]
[1761019440156,0.40181141,3904.3,3903.9,2.56152388]
[1761019440354,0.40181141,3904.3,3903.8,2.56159399]
[1761019440556,0.1331168,3904.2,3902.6,0.4473]
[1761019440768,0.40181141,3904.3,3901.5,0.2284]
[1761019440769,0.1414,3902.7,3901.5,0.2284]
[1761019440980,0.03202992,3902.6,3901.0,3.01073655]
[1761019441291,0.1414,3902.7,3901.1,0.4473]
[1761019441493,0.0544,3904.5,3902.6,0.2284]
[1761019441693,0.0320168,3904.2,3902.7,0.50688]
[1761019441896,0.0320168,3904.2,3903.1,2.56205933]
[1761019442071,0.0320168,3904.2,3902.7,0.95418]
[1761019442269,0.0320168,3904.2,3902.6,0.2284]
[1761019442270,6.82416873,3904.1,3902.6,0.2284]
[1761019442596,1.728,3903.7,3901.5,0.2284]
[1761019442803,5.034474,3903.0,3901.5,0.2284]
[1761019442972,9.992401,3902.7,3901.1,2.56335582]
[1761019443171,5.745,3903.3,3901.4,2.56316425]
[1761019443172,0.03202992,3902.6,3901.4,2.56316425]
[1761019443372,5.745,3903.3,3900.7,0.4473]
[1761019443373,0.099,3902.5,3900.7,0.4473]
[1761019443564,0.128,3901.0,3900.5,0.2268]
[1761019443764,0.128,3901.0,3900.5,0.6741]
[1761019444008,0.128,3901.0,3900.5,0.2268]
[1761019444299,0.128,3900.5,3900.4,0.002]
[1761019444502,10.480665,3901.3,3900.4,0.002]
[1761019444662,7.614325,3900.5,3900.4,0.002]
[1761019444868,0.1551,3900.6,3900.4,0.002]
[1761019445095,0.13204717,3900.5,3900.4,0.002]
[1761019445264,2.77837517,3900.5,3900.4,0.002]
[1761019445466,2.22321817,3900.5,3900.4,0.002]
[1761019445666,2.72509717,3900.5,3900.4,0.002]
[1761019445870,0.13204717,3900.5,3900.4,0.002]
[1761019446097,2.02408,3901.2,3900.4,0.002]
[1761019446404,1.728,3901.5,3900.4,0.002]
[1761019446589,1.728,3901.3,3900.4,0.002]
[1761019446765,4.343795,3900.5,3900.4,0.002]
[1761019446967,6.071795,3900.5,3900.4,0.001]
[1761019447166,1.728,3900.4,3898.1,0.4473]
[1761019447389,3.617257,3900.4,3898.7,2.56495102]
[1761019447608,0.154,3900.5,3899.1,2.56464778]
[1761019447903,6.818631,3900.4,3898.2,0.4473]
[1761019448104,6.818631,3900.4,3898.0,0.2284]
[1761019448105,2.56404007,3900.1,3898.0,0.2284]
[1761019448310,9.676225,3899.9,3898.0,0.2284]
[1761019448486,6.060653,3899.7,3898.0,0.2284]
[1761019448683,9.534507,3899.5,3897.2,4.003]
[1761019448909,1.728,3899.0,3897.2,4.003]
[1761019449110,1.728,3898.7,3896.6,2.56627968]
[1761019449419,1.728,3898.4,3896.3,0.4473]
[1761019449605,3.306198,3898.2,3896.3,0.4473]
[1761019449906,4.458684,3898.5,3896.3,0.4473]
[1761019450209,4.178375,3898.3,3896.1,3.526122]
[1761019450426,6.872901,3897.9,3896.2,2.56660219]
[1761019450588,0.099,3898.6,3896.3,0.46014939]
[1761019450772,2.56410259,3900.0,3896.3,0.46014939]
[1761019450773,2.364243,3898.2,3896.3,0.4473]
[1761019451108,1.728,3899.0,3897.5,2.56568598]
[1761019451325,3.997,3899.1,3897.1,0.4473]
[1761019451619,6.327333,3898.7,3897.1,2.56596782]
[1761019451934,4.954953,3898.5,3896.7,3.998]
[1761019452111,1.728,3898.4,3896.0,3.997]
[1761019452329,0.0771195,3897.1,3897.0,2.56607646]
[1761019452623,0.0771195,3897.1,3897.0,3.07295646]
[1761019452803,0.0771195,3897.1,3895.8,0.002]
[1761019453127,0.0771195,3897.1,3896.1,3.526122]
[1761019453294,0.03207595,3897.0,3896.1,3.526122]
[1761019453491,2.881176,3896.9,3896.1,3.526122]
[1761019453694,2.998283,3896.7,3896.1,3.526122]
[1761019453906,0.03207924,3896.6,3896.1,3.526122]
[1761019454312,0.0771195,3897.1,3896.1,3.526122]
[1761019454519,0.0771195,3897.1,3896.2,0.01285564]
[1761019454678,0.128,3896.5,3896.4,2.56647161]
[1761019454878,0.0771195,3897.1,3896.4,0.002]
[1761019455114,0.128,3896.6,3896.4,0.002]
[1761019455323,0.0771195,3897.1,3896.4,0.002]
[1761019455623,0.0771195,3897.1,3896.6,2.56629325]
[1761019455852,0.0771195,3897.1,3896.5,0.4473]
[1761019456017,0.0771195,3897.1,3897.0,2.56607646]
[1761019456211,0.0771195,3897.1,3896.8,2.56616803]
[1761019456408,0.0771195,3897.1,3896.4,0.002]
[1761019456609,0.03207595,3897.0,3896.4,0.002]
[1761019456813,7.217244,3896.9,3896.4,0.002]
[1761019457014,5.850926,3896.7,3896.4,0.002]
[1761019457224,3.495803,3896.5,3896.4,0.002]
[1761019457456,7.332224,3896.5,3896.4,0.002]
[1761019457625,0.099,3896.5,3896.4,0.002]
[1761019457827,7.37215,3896.5,3896.4,0.002]
[1761019458133,0.1438,3896.9,3896.4,0.002]
[1761019458317,1.7600776,3896.8,3896.4,0.002]
[1761019458514,3.986,3897.3,3896.4,0.002]
[1761019458718,2.471536,3897.1,3896.4,0.002]
[1761019458954,0.03207595,3897.0,3896.4,0.002]
[1761019459259,3.488348,3897.4,3896.4,0.002]
[1761019459441,0.03207348,3897.3,3896.4,0.4448]
[1761019459819,6.18282225,3898.3,3896.4,0.4448]
[1761019460160,0.03206608,3898.2,3896.5,0.50688]
[1761019460459,0.0545,3899.0,3897.7,2.56561329]
[1761019460668,14.772281,3898.8,3896.8,2.56615515]
[1761019460872,1.728,3898.5,3896.4,0.002]
[1761019461074,4.244388,3898.3,3896.7,2.56622297]
[1761019461358,3.048474,3898.1,3896.4,0.4448]
[1761019461567,0.1519,3898.2,3896.4,0.4448]
[1761019461720,7.243314,3898.0,3896.4,0.4448]
[1761019461927,4.172719,3897.8,3896.5,2.56639717]
[1761019462139,0.03207019,3897.7,3896.6,2.5663319]
[1761019462342,5.946879,3898.0,3896.4,0.002]
[1761019462540,0.1001,3898.1,3896.5,2.56640574]
[1761019462740,0.1519,3898.2,3896.8,2.56617712]
[1761019463022,0.40250859,3898.8,3896.9,0.01284149]
[1761019463222,0.40250859,3898.8,3897.0,0.4428]
[1761019463452,0.0549,3899.4,3897.5,2.56571821]
[1761019463764,0.0549,3899.4,3897.1,3.08572618]
[1761019463765,0.03205539,3899.5,3897.9,0.50688]
[1761019463946,0.03205128,3900.0,3898.1,0.50688]
[1761019464149,0.40240213,3900.1,3898.3,0.50688]
[1761019464445,3.152034,3900.8,3899.0,2.5647057]
[1761019464647,0.1535,3901.0,3899.1,0.01280266]
[1761019464857,0.1535,3901.0,3899.1,2.5774436]
[1761019465158,0.40224924,3902.0,3899.2,0.4428]
[1761019465324,0.40224924,3902.0,3900.9,0.2176]
[1761019465524,0.128,3901.3,3901.2,2.56331385]
[1761019465761,0.128,3901.3,3900.9,0.2176]
[1761019465962,0.129,3901.5,3901.0,3.01901767]
[1761019466260,0.129,3901.5,3901.1,2.56332113]
[1761019466432,0.129,3901.5,3901.3,2.56318459]
[1761019466641,0.001,3901.5,3900.6,0.4428]
[1761019466831,0.001,3901.5,3897.4,2.56581043]
[1761019466832,4.070564,3901.0,3900.1,0.128]
[1761019467052,0.1524,3899.3,3897.0,0.4428]
[1761019467256,1.728,3900.6,3897.6,0.6604]
[1761019467459,1.728,3900.6,3897.7,0.01281779]
[1761019467460,1.728,3900.4,3897.7,0.01281779]
[1761019467685,1.728,3900.2,3897.8,0.4428]
[1761019467854,6.514544,3900.0,3897.8,0.4428]
[1761019468174,0.0320521,3899.9,3897.8,0.4428]
[1761019468473,3.73864,3899.7,3898.3,2.56521996]
[1761019468694,3.73864,3899.7,3898.6,2.56496208]
[1761019468846,0.03205456,3899.6,3897.7,0.4428]
[1761019469183,7.983965,3899.9,3897.9,2.56541821]
[1761019469380,14.396495,3899.7,3897.8,2.56554979]
[1761019469539,0.03205456,3899.6,3898.2,2.56527848]
[1761019469744,0.03205456,3899.6,3898.0,2.56535741]
[1761019469946,0.03205456,3899.6,3898.0,2.56540396]
[1761019470145,2.172909,3899.5,3897.7,3.00839514]
[1761019470387,3.022652,3899.3,3897.7,0.4428]
[1761019470693,0.03205785,3899.2,3897.8,2.56548905]
[1761019470990,2.863299,3899.1,3897.3,2.56585741]
[1761019471146,2.863299,3899.1,3897.1,3.958]
[1761019471147,2.373829,3898.9,3897.1,6.52397978]
[1761019471474,2.012541,3898.7,3897.1,2.56599725]
[1761019471682,0.03206279,3898.6,3897.4,2.56575324]
[1761019471975,0.03206361,3898.5,3896.5,0.4624]
[1761019472139,0.1548,3899.0,3896.5,0.4624]
[1761019472339,0.1548,3899.0,3896.4,0.002]
[1761019472340,0.0558,3899.0,3897.7,2.5656092]
[1761019472564,0.0558,3899.0,3897.3,0.4624]
[1761019472770,0.0320595,3899.0,3898.2,2.5652281]
[1761019472976,0.40225566,3899.0,3898.5,2.56508406]
[1761019473191,0.488,3899.8,3898.6,2.56501514]
[1761019473345,0.1529,3900.7,3898.9,2.56477345]
[1761019473346,0.2519,3900.7,3898.9,2.56477345]
[1761019473545,0.2519,3900.7,3898.5,0.50688]
[1761019473546,0.4021902,3899.8,3898.5,0.50688]
[1761019473845,0.03204635,3900.6,3898.7,0.50688]
[1761019474049,0.1529,3900.7,3898.7,0.50688]
[1761019474050,0.1529,3900.7,3899.7,2.56428657]
[1761019474245,0.1529,3900.7,3898.9,2.56482597]
[1761019474246,0.1529,3900.7,3899.2,2.5645998]
[1761019474452,0.1529,3900.7,3898.7,0.50688]
[1761019474453,0.03204635,3900.6,3899.3,2.56455259]
[1761019474671,3.902081,3900.5,3898.8,0.4624]
[1761019474849,8.441037,3900.3,3898.6,2.80101298]
[1761019475051,1.76004963,3900.2,3898.6,0.236]
[1761019475358,1.728,3899.6,3897.2,0.4624]
[1761019475555,3.96505046,3900.1,3897.2,0.4624]
[1761019475556,0.001,3899.1,3897.2,0.4624]
[1761019475767,0.001,3899.1,3897.4,2.5658131]
[1761019475944,0.001,3899.1,3898.0,2.56535527]
[1761019476293,0.03305868,3899.1,3897.5,0.4624]
[1761019476496,0.001,3899.1,3897.5,0.4624]
[1761019476794,0.001,3899.1,3896.4,0.002]
[1761019476795,0.1509,3897.6,3896.4,0.002]
[1761019477092,0.128,3897.1,3896.5,0.47524939]
[1761019477247,2.484335,3899.0,3896.5,0.47524939]
[1761019477448,0.03206032,3898.9,3896.5,0.4624]
[1761019477649,3.139109,3898.8,3897.1,2.56599891]
[1761019477881,0.001,3899.1,3897.3,2.56587894]
[1761019478051,5.075323,3898.9,3897.1,2.56599864]
[1761019478254,11.400677,3898.7,3896.5,0.4624]
[1761019478460,0.001,3899.1,3896.9,0.50688]
[1761019478643,5.448756,3899.0,3897.2,2.56594478]
[1761019478848,0.03206032,3898.9,3897.1,0.50688]
[1761019479081,0.03206032,3898.9,3897.6,2.56562649]
[1761019479263,0.03206032,3898.9,3898.0,2.56541507]
[1761019479464,7.27914,3898.8,3897.6,2.56567269]
[1761019479665,7.27914,3898.8,3897.2,0.4624]
[1761019479666,0.03206196,3898.7,3897.7,2.56560989]
[1761019479860,11.957132,3899.0,3897.7,2.56560989]
[1761019480056,5.060579,3898.8,3897.9,2.56543034]
[1761019480258,0.03206196,3898.7,3897.7,0.236]
[1761019480458,4.5482,3899.0,3898.3,2.56517323]
[1761019480688,0.001,3899.1,3897.9,2.56548397]
[1761019480981,0.001,3899.1,3898.0,0.4624]
[1761019481159,0.001,3899.1,3898.7,2.56489946]
[1761019481361,0.001,3899.1,3899.0,2.56476019]
[1761019482386,0.001,3899.1,3897.6,4.29367413]
[1761019482691,0.001,3899.1,3897.1,2.56597752]
[1761019482980,0.0588,3899.1,3897.8,0.01282898]
[1761019483180,0.001,3899.1,3898.5,2.56505402]
[1761019483381,0.001,3899.1,3897.9,2.56542314]
[1761019483553,0.001,3899.1,3897.8,2.56553891]
[1761019483754,0.001,3899.1,3897.8,2.56554979]
[1761019483954,0.001,3899.1,3897.7,0.236]
[1761019484263,0.001,3899.1,3898.3,2.56520692]
[1761019484459,0.001,3899.1,3898.2,2.56528487]
[1761019484673,4.270013,3899.0,3897.9,2.5654803]
[1761019484873,0.03206032,3898.9,3897.7,0.236]
[1761019485076,0.03206032,3898.9,3897.4,3.917]
[1761019485275,0.03206032,3898.9,3897.8,2.56553364]
[1761019485585,0.03206032,3898.9,3897.9,2.56542679]
[1761019485884,0.03206114,3898.8,3897.4,3.917]
[1761019486082,0.001,3899.1,3897.5,0.47523161]
[1761019486284,0.001,3899.1,3898.4,2.56509744]
[1761019486492,0.001,3899.1,3897.7,2.56561561]
[1761019486493,0.001,3899.1,3898.5,2.56507786]
[1761019486663,0.001,3899.1,3897.8,0.47522141]
[1761019486862,0.001,3899.1,3897.9,0.50688]
[1761019487062,0.001,3899.1,3899.0,2.80076019]
[1761019487273,0.001,3899.1,3899.0,3.26316019]
[1761019487852,0.001,3899.1,3899.0,0.236]
[1761019488088,0.001,3899.1,3898.7,0.4624]
[1761019488293,0.001,3899.1,3898.6,0.236]
[1761019488460,0.001,3899.1,3899.0,2.56476019]
[1761019488654,0.001,3899.1,3899.0,3.03997436]
[1761019488875,0.001,3899.1,3899.0,3.02716019]
[1761019489078,0.001,3899.1,3898.6,0.236]
[1761019489275,2.834029,3899.0,3897.1,0.4624]
[1761019489476,0.03206032,3898.9,3897.4,2.56579161]
[1761019489696,11.362874,3898.6,3897.0,2.56606886]
[1761019489898,11.362874,3898.6,3896.7,2.56627402]
[1761019489899,0.099,3898.9,3896.8,0.47523787]
[1761019490100,3.443758,3898.6,3896.8,0.47523787]
[1761019490312,0.099,3898.9,3896.8,0.47523787]
[1761019490480,1.728,3898.7,3896.8,0.47523787]
[1761019490839,0.001,3899.1,3897.7,2.56559336]
[1761019491124,0.001,3899.1,3897.0,2.56607646]
[1761019491125,0.001,3899.1,3897.6,2.56567004]
[1761019491286,0.001,3899.1,3898.1,2.5653394]
[1761019491486,3.26739,3899.0,3897.9,2.5654708]
[1761019491814,0.03206032,3898.9,3898.2,2.56528353]
[1761019491975,0.03206032,3898.9,3898.1,2.56533748]
[1761019492182,0.001,3899.1,3898.2,2.56527403]
[1761019492183,0.40335343,3899.1,3898.2,2.56527403]
[1761019492426,0.0320595,3899.0,3898.0,2.56536175]
[1761019492589,0.001,3899.1,3898.3,2.56522073]
[1761019492917,0.001,3899.1,3898.6,2.56499965]
[1761019493212,0.001,3899.1,3897.6,2.56568144]
[1761019493463,0.001,3899.1,3898.8,2.56487905]
[1761019493743,0.001,3899.1,3898.7,2.56495754]
[1761019493945,0.001,3899.1,3898.3,0.4624]
[1761019493946,0.001,3899.1,3898.4,2.56509466]
[1761019494247,0.001,3899.1,3897.4,2.56578958]
[1761019494248,0.001,3899.1,3898.5,2.5650527]
[1761019494539,0.001,3899.1,3898.7,2.56494272]
[1761019494740,0.001,3899.1,3898.8,2.57770028]
[1761019494941,0.001,3899.1,3898.7,2.56494398]
[1761019495240,0.001,3899.1,3898.8,2.56489037]
[1761019495456,0.001,3899.1,3898.3,3.02758746]
[1761019495614,0.001,3899.1,3898.3,0.4624]
[1761019495805,0.001,3899.1,3898.4,0.4624]
[1761019496025,0.001,3899.1,3899.0,2.56476019]
[1761019496548,0.001,3899.1,3899.0,3.54685436]
[1761019497611,0.001,3899.1,3899.0,3.67485436]
[1761019497813,0.0320406,3901.3,3900.0,2.56409138]
[1761019498055,0.0320406,3901.3,3899.8,2.56423406]
[1761019498212,0.40212974,3902.1,3900.5,2.56372711]
[1761019498413,0.03303895,3901.5,3900.0,0.236]
[1761019498718,0.13333895,3901.5,3900.1,2.56403196]
[1761019499147,0.001,3901.5,3900.2,0.47518721]
[1761019499449,0.001,3901.5,3900.4,2.56383471]
[1761019499742,0.001,3901.5,3900.5,0.01278425]
[1761019499908,0.001,3901.5,3900.6,2.56369005]
[1761019500108,0.001,3901.5,3900.2,0.4624]
[1761019500321,0.001,3901.5,3899.8,3.855]
[1761019500322,5.50518,3901.4,3899.8,3.855]
[1761019500544,0.13333895,3901.5,3897.6,2.703]
[1761019500546,0.1129,3899.9,3897.6,2.56563105]
[1761019500745,0.1129,3899.9,3898.7,3.853]
[1761019500914,0.1129,3900.5,3898.9,0.6648]
[1761019501110,0.1129,3900.5,3899.3,2.56451424]
[1761019501336,0.1129,3900.5,3898.7,3.853]
[1761019501337,1.728,3900.3,3898.7,3.853]
[1761019501556,0.03204963,3900.2,3898.8,0.2152]
[1761019501714,18.849681,3899.8,3897.8,2.56549217]
[1761019501914,2.047113,3899.5,3897.4,0.24882273]
[1761019502116,6.896908,3899.3,3897.4,0.236]
[1761019502340,1.8285,3899.7,3897.5,0.4288]
[1761019502341,0.1005,3899.7,3897.5,0.4288]
[1761019502553,2.0114,3899.5,3897.7,2.56555601]
[1761019502714,7.000712,3899.4,3897.7,2.56558159]
[1761019502920,7.000712,3899.4,3897.5,2.56574727]
[1761019502921,7.587402,3899.2,3897.5,2.56574727]
[1761019503251,0.1005,3899.3,3897.9,2.56542433]
[1761019503451,0.03205539,3899.5,3898.5,2.56504288]
[1761019503751,0.1005,3900.0,3898.6,2.5649669]
[1761019503930,0.03205292,3899.8,3898.0,0.4288]
[1761019504455,0.03205292,3899.8,3897.4,0.236]
[1761019504456,1.728,3899.6,3897.9,2.56545478]
[1761019504671,4.376065,3899.7,3897.9,2.56544119]
[1761019504672,0.03205539,3899.5,3897.9,2.56544119]
[1761019504827,0.03205539,3899.5,3898.0,2.56541203]
[1761019505152,0.03205539,3899.5,3898.1,2.56534969]
[1761019505327,1.728,3899.3,3897.9,2.56545317]
[1761019505530,0.1005,3900.2,3898.0,0.44162338]
[1761019505733,0.1005,3900.2,3898.6,2.56502276]
[1761019505919,0.1129,3900.5,3898.7,0.01281121]
[1761019505920,1.261,3900.4,3898.7,0.01281121]